bitfinex/quotes_ETHUSD_20230103
["timestamp","ask_amount","ask_price","bid_price","bid_amount"]
[1672768188600,5.6434267,1208.5,1208.4,49.11046761]
[1672768188794,5.6434267,1208.5,1208.4,49.17646761]
[1672768189023,5.6434267,1208.5,1208.4,56.89396791]
[1672768189638,5.6434267,1208.5,1208.4,57.38913963]
[1672768189888,1.3991067,1208.5,1208.4,59.43913963]
[1672768190061,1.3331067,1208.5,1208.4,59.43913963]
[1672768190835,7.85178132,1208.6,1208.4,70.43913963]
[1672768190996,7.85178132,1208.6,1208.5,12.15755254]
[1672768191209,0.06838132,1208.6,1208.5,60.216007]
[1672768191460,0.00238132,1208.6,1208.5,60.216007]
[1672768192022,0.00238132,1208.6,1208.5,60.71117872]
[1672768192624,0.00030452,1208.6,1208.5,60.71117872]
[1672768193885,3.61078018,1208.6,1208.5,60.71117872]
[1672768194621,3.61078018,1208.6,1208.5,47.83482732]
[1672768194785,3.61078018,1208.6,1208.5,17.37452114]
[1672768194997,7.32420987,1208.6,1208.5,27.30418114]
[1672768195185,7.32420987,1208.6,1208.5,37.23384114]
[1672768195186,7.39020987,1208.6,1208.5,37.23384114]
[1672768195400,3.67678018,1208.6,1208.5,7.44486114]
[1672768195644,7.32420987,1208.6,1208.5,17.37452114]
[1672768195854,7.39020987,1208.6,1208.5,7.44486114]
[1672768196079,7.39020987,1208.6,1208.5,27.30418114]
[1672768196295,7.39020987,1208.6,1208.5,17.37452114]
[1672768196520,7.39020987,1208.6,1208.5,27.30418114]
[1672768196736,7.39020987,1208.6,1208.5,37.23384114]
[1672768196881,3.67678018,1208.6,1208.5,47.16350114]
[1672768197096,3.61078018,1208.6,1208.5,47.16350114]
[1672768197306,3.61078018,1208.6,1208.5,53.92566187]
[1672768198459,3.61078018,1208.6,1208.5,56.86821603]
[1672768199795,3.61078018,1208.6,1208.5,56.86948768]
[1672768200011,3.61078018,1208.6,1208.5,53.92566187]
[1672768200225,7.32420987,1208.6,1208.5,53.92566187]
[1672768200385,3.67678018,1208.6,1208.5,53.92566187]
[1672768200595,3.61078018,1208.6,1208.5,53.92566187]
[1672768200959,7.32420987,1208.6,1208.5,53.92566187]
[1672768201117,7.39020987,1208.6,1208.5,53.92566187]
[1672768201484,3.67678018,1208.6,1208.5,56.86875305]
[1672768201695,3.61078018,1208.6,1208.5,56.86875305]
[1672768202221,3.1000155,1208.6,1208.5,56.86875305]
[1672768202534,3.1000155,1208.6,1208.5,76.93075305]
[1672768202753,5.57967294,1208.6,1208.5,76.93075305]
[1672768202915,5.64567294,1208.6,1208.5,76.93075305]
[1672768204184,2.54596196,1208.6,1208.5,76.93075305]
[1672768204417,2.47996196,1208.6,1208.5,76.93075305]
[1672768204753,9.1901486,1208.6,1208.5,76.93075305]
[1672768204959,3.1660155,1208.6,1208.5,76.93075305]
[1672768205269,6.71049116,1208.6,1208.5,76.93075305]
[1672768205596,6.77649116,1208.6,1208.5,76.93075305]
[1672768205736,7.38525023,1208.6,1208.5,76.93075305]
[1672768207686,9.86424783,1208.6,1208.5,76.93075305]
[1672768209472,6.25377217,1208.6,1208.5,76.93075305]
[1672768211199,9.86424783,1208.6,1208.5,76.93075305]
[1672768211410,6.25377217,1208.6,1208.5,76.93075305]
[1672768212258,3.15406119,1208.6,1208.5,76.93075305]
[1672768212474,3.08806119,1208.6,1208.5,76.93075305]
[1672768213241,6.69853685,1208.6,1208.5,76.93075305]
[1672768213413,6.76453685,1208.6,1208.5,76.93075305]
[1672768214467,3.15406119,1208.6,1208.5,76.93075305]
[1672768214727,3.08806119,1208.6,1208.5,76.93075305]
[1672768215358,6.69853685,1208.6,1208.5,76.93075305]
[1672768215547,5.01298698,1208.6,1208.5,76.93075305]
[1672768216319,3.15406119,1208.6,1208.5,76.93075305]
[1672768216476,4.94698393,1208.6,1208.5,76.93075305]
[1672768216686,4.94698393,1208.6,1208.5,76.92698686]
[1672768217312,2.46798633,1208.6,1208.5,76.92698686]
[1672768217522,3.70730048,1208.6,1208.5,76.92698686]
[1672768217950,4.94698393,1208.6,1208.5,76.92698686]
[1672768218351,8.55745959,1208.6,1208.5,76.92698686]
[1672768218561,5.01298393,1208.6,1208.5,76.92698686]
[1672768218819,2.53398633,1208.6,1208.5,76.92698686]
[1672768219029,4.94698393,1208.6,1208.5,76.92698686]
[1672768221562,2.46798633,1208.6,1208.5,76.92698686]
[1672768221986,4.94698393,1208.6,1208.5,76.92698686]
[1672768222136,2.46798633,1208.6,1208.5,76.92698686]
[1672768222344,4.94698393,1208.6,1208.5,76.92698686]
[1672768223663,4.94898393,1208.6,1208.5,76.92498686]
[1672768223878,4.94698393,1208.6,1208.5,76.92698686]
[1672768224682,2.46798633,1208.6,1208.5,76.92698686]
[1672768225358,4.94698393,1208.6,1208.5,76.92698686]
[1672768225980,2.46798633,1208.6,1208.5,76.92698686]
[1672768226210,4.94698393,1208.6,1208.5,76.92698686]
[1672768227201,8.55745959,1208.6,1208.5,76.92698686]
[1672768227413,9.86424783,1208.6,1208.5,76.92698686]
[1672768227718,6.25377217,1208.6,1208.5,76.92698686]
[1672768227935,3.15406119,1208.6,1208.5,76.92698686]
[1672768228140,4.94817864,1208.6,1208.5,76.92698686]
[1672768228351,2.46918104,1208.6,1208.5,76.92698686]
[1672768228603,3.7093708,1208.6,1208.5,76.92698686]
[1672768229332,3.70946931,1208.6,1208.5,76.92698686]
[1672768230573,3.70946931,1208.6,1208.5,78.97698686]
[1672768232009,2.46930702,1208.6,1208.5,78.97698686]
[1672768233774,3.70891361,1208.6,1208.5,78.97698686]
[1672768236644,1.84867018,1208.6,1208.5,78.97698686]
[1672768236855,3.70891361,1208.6,1208.5,78.97698686]
[1672768238985,1.84867018,1208.6,1208.5,78.97698686]
[1672768239770,3.70891361,1208.6,1208.5,78.97698686]
[1672768239970,1.84867018,1208.6,1208.5,78.97698686]
[1672768240182,3.70891361,1208.6,1208.5,78.97698686]
[1672768240541,3.70891361,1208.6,1208.5,76.91498686]
[1672768243500,1.84867018,1208.6,1208.5,76.91498686]
[1672768246911,3.70891361,1208.6,1208.5,76.91498686]
[1672768248266,2.46930702,1208.6,1208.5,76.91498686]
[1672768248743,4.9496316,1208.6,1208.5,76.91498686]
[1672768248952,3.70889684,1208.6,1208.5,76.91498686]
[1672768256536,2.46930702,1208.6,1208.5,76.91498686]
[1672768256750,4.9496316,1208.6,1208.5,76.91498686]
[1672768257188,6.07978268,1208.6,1208.5,76.91498686]
[1672768257400,3.77520789,1208.6,1208.5,76.91498686]
[1672768257632,3.70920789,1208.6,1208.5,76.91498686]
[1672768258010,2.46930702,1208.6,1208.5,76.91498686]
[1672768258572,3.70912649,1208.6,1208.5,76.91498686]
[1672768258764,3.70894043,1208.6,1208.5,76.91498686]
[1672768258972,2.46930702,1208.6,1208.5,76.91498686]
[1672768259375,3.70888346,1208.6,1208.5,76.91498686]
[1672768260803,3.70888346,1208.6,1208.5,77.41015858]
[1672768263894,1.84864003,1208.6,1208.5,77.41015858]
[1672768264159,3.70888346,1208.6,1208.5,77.41015858]
[1672768265696,3.7090894,1208.6,1208.5,77.41015858]
[1672768265913,4.9496316,1208.6,1208.5,77.41015858]
[1672768266351,2.46930702,1208.6,1208.5,77.41015858]
[1672768267402,4.9496316,1208.6,1208.5,77.41015858]
[1672768268239,2.46930702,1208.6,1208.5,77.41015858]
[1672768268798,3.70926662,1208.6,1208.5,77.41015858]
[1672768269126,2.46930702,1208.6,1208.5,77.41015858]
[1672768270307,3.70949371,1208.6,1208.5,77.41015858]
[1672768275799,1.84925028,1208.6,1208.5,77.41015858]
[1672768276684,3.70949371,1208.6,1208.5,77.41015858]
[1672768277952,2.46930702,1208.6,1208.5,77.41015858]
[1672768278167,6.07978268,1208.6,1208.5,77.41015858]
[1672768278341,6.76586383,1208.6,1208.5,77.41015858]
[1672768278550,8.62574793,1208.6,1208.5,77.41015858]
[1672768278761,8.62565308,1208.6,1208.5,77.41015858]
[1672768279108,6.76586383,1208.6,1208.5,77.41015858]
[1672768279491,6.76586383,1208.6,1208.5,70.64501485]
[1672768279726,8.62561804,1208.6,1208.5,70.64501485]
[1672768279914,8.62560494,1208.6,1208.5,70.64501485]
[1672768280351,2.5348047,1208.6,1208.5,70.64501485]
[1672768280587,2.4688047,1208.6,1208.5,70.64501485]
[1672768280800,2.4688047,1208.6,1208.5,78.07851094]
[1672768280949,3.7086943,1208.6,1208.5,78.07851094]
[1672768282097,2.4688047,1208.6,1208.5,78.07851094]
[1672768282369,3.70868391,1208.6,1208.5,78.07851094]
[1672768282854,1.8489428,1208.6,1208.5,78.07851094]
[1672768283065,1.8489428,1208.6,1208.5,79.31735081]
[1672768283280,1.8489428,1208.6,1208.5,81.37935081]
[1672768284900,1.8489428,1208.6,1208.5,80.14051094]
[1672768285265,1.8489428,1208.6,1208.5,81.37935081]
[1672768285680,1.8489428,1208.6,1208.5,80.14051094]
[1672768285895,1.8489428,1208.6,1208.5,81.37935081]
[1672768286108,1.8489428,1208.6,1208.5,80.14051094]
[1672768289903,1.8489428,1208.6,1208.5,81.37935081]
[1672768290449,1.8489428,1208.6,1208.5,80.14051094]
[1672768290628,0.61106359,1208.6,1208.5,79.32435081]
[1672768290832,0.60906359,1208.6,1208.5,79.32635081]
[1672768291042,1.8489428,1208.6,1208.5,78.08751094]
[1672768291254,0.60906359,1208.6,1208.5,79.32635081]
[1672768291907,0.60906359,1208.6,1208.5,78.08751094]
[1672768292090,0.60906359,1208.6,1208.5,79.32635081]
[1672768292992,0.60906359,1208.6,1208.5,78.08751094]
[1672768293146,0.60906359,1208.6,1208.5,79.32635081]
[1672768293358,0.60906359,1208.6,1208.5,78.08751094]
[1672768293825,0.60906359,1208.6,1208.5,79.32635081]
[1672768295350,0.60906359,1208.6,1208.5,78.08751094]
[1672768295669,0.60906359,1208.6,1208.5,79.32635081]
[1672768295932,0.60906359,1208.6,1208.5,78.08751094]
[1672768299672,0.60906359,1208.6,1208.5,79.32635081]
[1672768300084,0.60906359,1208.6,1208.5,78.08751094]
[1672768300764,0.60906359,1208.6,1208.5,79.32635081]
[1672768301299,0.60906359,1208.6,1208.5,78.08751094]
[1672768306085,0.60906359,1208.6,1208.5,79.32635081]
[1672768306295,0.60906359,1208.6,1208.5,78.08751094]
[1672768307914,1.8489428,1208.6,1208.5,78.08751094]
[1672768308140,0.60906359,1208.6,1208.5,78.08751094]
[1672768309076,0.60906359,1208.6,1208.5,79.32635081]
[1672768312110,0.60906359,1208.6,1208.5,78.08751094]
[1672768312936,1.8489428,1208.6,1208.5,78.08751094]
[1672768314227,5.45941846,1208.6,1208.5,65.65192367]
[1672768314440,7.38515957,1208.6,1208.5,65.65192367]
[1672768314673,7.38515957,1208.6,1208.5,55.72226367]
[1672768314837,6.14528036,1208.6,1208.5,55.72026367]
[1672768315215,8.62560494,1208.6,1208.5,55.72226367]
[1672768315360,8.62560494,1208.6,1208.5,55.72008677]
[1672768315576,8.62560494,1208.6,1208.5,44.72008677]
[1672768315943,6.76586383,1208.6,1208.5,44.72008677]
[1672768316850,6.76586383,1208.6,1208.5,54.64974677]
[1672768317041,8.62271896,1208.6,1208.5,54.64974677]
[1672768319837,6.14239438,1208.6,1208.5,54.64974677]
[1672768320245,6.14239438,1208.6,1208.5,65.64974677]
[1672768320852,3.76965476,1208.6,1208.5,65.64974677]
[1672768321023,3.70365476,1208.6,1208.5,65.64974677]
[1672768321656,1.84679963,1208.6,1208.5,65.64974677]
[1672768322019,3.70365476,1208.6,1208.5,65.64974677]
[1672768322227,7.31413042,1208.6,1208.5,65.64974677]
[1672768322443,7.38013042,1208.6,1208.5,65.64974677]
[1672768325207,3.76965476,1208.6,1208.5,65.64974677]
[1672768325384,5.45727529,1208.6,1208.5,65.64974677]
[1672768325597,1.91279963,1208.6,1208.5,65.64974677]
[1672768325833,1.84679963,1208.6,1208.5,65.64974677]
[1672768327171,1.84679963,1208.6,1208.5,73.45455206]
[1672768327580,1.84879963,1208.6,1208.5,73.45255206]
[1672768327794,3.70365476,1208.6,1208.5,73.45455206]
[1672768328174,1.84679963,1208.6,1208.5,73.45455206]
[1672768328623,1.84679963,1208.6,1208.5,77.91223057]
[1672768329187,7.31413042,1208.6,1208.5,77.91223057]
[1672768329464,3.76965476,1208.6,1208.5,77.91223057]
[1672768329625,3.70365476,1208.6,1208.5,77.91223057]
[1672768329985,1.84679963,1208.6,1208.5,77.91223057]
[1672768333078,0.60906359,1208.6,1208.5,77.91223057]
[1672768338389,1.84679963,1208.6,1208.5,77.91223057]
[1672768338764,0.60906359,1208.6,1208.5,77.91223057]
[1672768339374,0.60618804,1208.6,1208.5,77.91223057]
[1672768343449,0.60618804,1208.6,1208.5,77.41705885]
[1672768343876,0.60618804,1208.6,1208.5,77.91223057]
[1672768344714,0.60618804,1208.6,1208.5,79.15107044]
[1672768345170,8.04e-06,1208.6,1208.5,79.15107044]
[1672768346737,8.04e-06,1208.6,1208.5,77.91223057]
[1672768347303,8.04e-06,1208.6,1208.5,79.15107044]
[1672768347456,8.04e-06,1208.6,1208.5,77.91223057]
[1672768358855,7.65741772,1208.7,1208.5,77.91223057]
[1672768359083,7.65741772,1208.7,1208.6,4.37886114]
[1672768359290,7.65741772,1208.7,1208.6,52.27256548]
[1672768359614,7.65741772,1208.7,1208.6,52.8337372]
[1672768359965,7.65741772,1208.7,1208.6,56.22168439]
[1672768360500,8.90000626,1208.7,1208.6,52.8337372]
[1672768360739,6.41968168,1208.7,1208.6,47.65539286]
[1672768361329,8.90000626,1208.7,1208.6,47.65539286]
[1672768361541,7.04315113,1208.7,1208.6,47.65539286]
[1672768362017,8.90037474,1208.7,1208.6,47.65539286]
[1672768362451,7.04315113,1208.7,1208.6,47.65539286]
[1672768363114,8.90008237,1208.7,1208.6,47.65539286]
[1672768363327,8.86008237,1208.7,1208.6,58.8074412]
[1672768365238,8.86008237,1208.7,1208.6,55.41989815]
[1672768366100,8.86008237,1208.7,1208.6,58.80728192]
[1672768366489,8.86008237,1208.7,1208.6,58.80659402]
[1672768366698,8.86008237,1208.7,1208.6,55.41989815]
[1672768369329,8.86024835,1208.7,1208.6,55.41989815]
[1672768369546,8.86024835,1208.7,1208.6,58.80721794]
[1672768374380,6.37992377,1208.7,1208.6,58.80721794]
[1672768375102,8.86024835,1208.7,1208.6,58.80721794]
[1672768377221,8.86024835,1208.7,1208.6,58.80738929]
[1672768380035,8.86024835,1208.7,1208.6,55.41989815]
[1672768380561,8.86024835,1208.7,1208.6,58.80694818]
[1672768385120,8.86024835,1208.7,1208.6,55.41989815]
[1672768385871,8.86024835,1208.7,1208.6,55.41602704]
[1672768386084,8.86024835,1208.7,1208.6,58.80086301]
[1672768386451,8.86024835,1208.7,1208.6,55.41602704]
[1672768386658,8.85994493,1208.7,1208.6,58.80051825]
[1672768387113,7.00315113,1208.7,1208.6,55.41602704]
[1672768387323,7.00315113,1208.7,1208.6,58.80086301]
[1672768387537,5.26137692,1208.7,1208.6,58.80086301]
[1672768387986,8.85989194,1208.7,1208.6,58.80086301]
[1672768388459,8.85989194,1208.7,1208.6,58.80128788]
[1672768388652,8.85989194,1208.7,1208.6,55.41602704]
[1672768388867,8.85989194,1208.7,1208.6,58.80128788]
[1672768390192,8.85989194,1208.7,1208.6,58.8011863]
[1672768391098,5.26137692,1208.7,1208.6,58.8011863]
[1672768391308,4.01885598,1208.7,1208.6,60.8501863]
[1672768391572,5.19537692,1208.7,1208.6,60.8501863]
[1672768391788,2.78105234,1208.7,1208.6,60.8501863]
[1672768391938,2.71505234,1208.7,1208.6,60.8501863]
[1672768394300,5.19537692,1208.7,1208.6,60.8501863]
[1672768394517,2.78105234,1208.7,1208.6,60.8501863]
[1672768394662,2.71505234,1208.7,1208.6,60.8501863]
[1672768396387,8.79389194,1208.7,1208.6,60.8501863]
[1672768396573,6.37956736,1208.7,1208.6,60.8501863]
[1672768396877,8.85989194,1208.7,1208.6,60.8501863]
[1672768398046,7.00315113,1208.7,1208.6,60.8501863]
[1672768398263,7.00315113,1208.7,1208.6,57.46502704]
[1672768398615,8.86021003,1208.7,1208.6,60.85016616]
[1672768398767,7.00315113,1208.7,1208.6,57.46502704]
[1672768399127,7.00315113,1208.7,1208.6,60.84976042]
[1672768399550,7.00315113,1208.7,1208.6,57.46502704]
[1672768399755,7.00315113,1208.7,1208.6,60.84977151]
[1672768400101,10.10286211,1208.7,1208.6,57.46502704]
[1672768400438,10.10286211,1208.7,1208.6,57.46302704]
[1672768400782,10.10286211,1208.7,1208.6,55.41602704]
[1672768402841,10.10286211,1208.7,1208.6,58.80053414]
[1672768403209,7.00315113,1208.7,1208.6,58.80018963]
[1672768403572,7.00315113,1208.7,1208.6,55.41602704]
[1672768403573,10.10286211,1208.7,1208.6,55.41602704]
[1672768403856,7.00315113,1208.7,1208.6,58.79998736]
[1672768404698,7.00315113,1208.7,1208.6,55.41602704]
[1672768405065,7.00315113,1208.7,1208.6,58.80031467]
[1672768405732,8.86011104,1208.7,1208.6,58.80031467]
[1672768406307,5.26159602,1208.7,1208.6,58.80031467]
[1672768406566,8.86011104,1208.7,1208.6,58.80031467]
[1672768409417,5.26159602,1208.7,1208.6,58.80031467]
[1672768410558,8.86011104,1208.7,1208.6,58.80031467]
[1672768412034,5.26159602,1208.7,1208.6,58.80031467]
[1672768412195,8.86011104,1208.7,1208.6,58.80031467]
[1672768414754,4.01971858,1208.7,1208.6,58.80031467]
[1672768414965,3.95371858,1208.7,1208.6,58.80031467]
[1672768416243,2.09675867,1208.7,1208.6,58.80031467]
[1672768420548,2.09675867,1208.7,1208.6,60.86031467]
[1672768433515,2.09675867,1208.7,1208.6,60.36514295]
[1672768433722,2.09675867,1208.7,1208.6,60.86031467]
[1672768434248,3.95371858,1208.7,1208.6,60.86031467]
[1672768435298,2.09675867,1208.7,1208.6,60.86031467]
[1672768441747,5.69459203,1208.7,1208.6,49.71152175]
[1672768442058,5.69459203,1208.7,1208.6,47.15265875]
[1672768442059,6.3791048,1208.7,1208.6,47.15265875]
[1672768442229,7.00246947,1208.7,1208.6,47.15265875]
[1672768442440,8.85930842,1208.7,1208.6,47.15265875]
[1672768445713,10.85397411,1208.7,1208.6,47.15265875]
[1672768446088,10.85383394,1208.7,1208.6,47.15265875]
[1672768446298,8.9969436,1208.7,1208.6,47.15265875]
[1672768446513,10.85376547,1208.7,1208.6,47.15265875]
[1672768446825,8.9969436,1208.7,1208.6,47.15265875]
[1672768448007,7.00246947,1208.7,1208.6,46.92265875]
[1672768448217,8.85913761,1208.7,1208.6,46.92265875]
[1672768448442,10.10218045,1208.7,1208.6,46.92265875]
[1672768448610,10.10218045,1208.7,1208.6,57.92265875]
[1672768448611,8.85913713,1208.7,1208.6,57.92265875]
[1672768448826,8.85913713,1208.7,1208.6,46.92265875]
[1672768449662,7.61665517,1208.7,1208.6,47.15265875]
[1672768449974,8.85913713,1208.7,1208.6,47.15265875]
[1672768450121,7.61669151,1208.7,1208.6,47.15265875]
[1672768450332,7.61669151,1208.7,1208.6,47.64783047]
[1672768457373,6.37881255,1208.7,1208.6,47.64783047]
[1672768457855,7.61706259,1208.7,1208.6,47.64783047]
[1672768459215,6.37881255,1208.7,1208.6,47.64783047]
[1672768459648,8.85913713,1208.7,1208.6,47.64783047]
[1672768463664,7.00246947,1208.7,1208.6,47.64783047]
[1672768464218,10.10218045,1208.7,1208.6,47.64783047]
[1672768464443,7.62185587,1208.7,1208.6,47.64783047]
[1672768464651,10.09847771,1208.7,1208.6,47.64783047]
[1672768466266,10.09847771,1208.7,1208.6,47.64456122]
[1672768466474,6.99876673,1208.7,1208.6,47.64456122]
[1672768467609,10.09847771,1208.7,1208.6,47.64456122]
[1672768468387,10.09847771,1208.7,1208.6,47.64256122]
[1672768468702,10.09847771,1208.7,1208.6,47.64456122]
[1672768468925,6.99876673,1208.7,1208.6,47.64456122]
[1672768469083,8.85607705,1208.7,1208.6,47.64456122]
[1672768469858,8.85594535,1208.7,1208.6,47.64456122]
[1672768470612,8.85594535,1208.7,1208.6,51.08029729]
[1672768470766,6.37932351,1208.7,1208.6,61.00913729]
[1672768470975,7.61748776,1208.7,1208.6,61.00913729]
[1672768471408,7.61747857,1208.7,1208.6,61.00913729]
[1672768474024,8.85561194,1208.7,1208.6,61.00913729]
[1672768474567,8.85561194,1208.7,1208.6,51.08029729]
[1672768477212,8.85561194,1208.7,1208.6,58.00497751]
[1672768478374,8.85561194,1208.7,1208.6,51.08029729]
[1672768480470,2.78149015,1208.7,1208.6,51.08029729]
[1672768480685,2.71549015,1208.7,1208.6,51.0792517]
[1672768481374,6.31400517,1208.7,1208.6,51.0792517]
[1672768481572,6.38000517,1208.7,1208.6,51.0792517]
[1672768481780,6.38000517,1208.7,1208.6,59.20284537]
[1672768482514,7.61883073,1208.7,1208.6,59.20284537]
[1672768485303,4.02031571,1208.7,1208.6,59.20284537]
[1672768485467,7.55283073,1208.7,1208.6,59.20284537]
[1672768485683,7.61883073,1208.7,1208.6,59.20284537]
[1672768488056,7.6188963,1208.7,1208.6,59.20284537]
[1672768488628,4.02038128,1208.7,1208.6,59.20284537]
[1672768488839,7.5528963,1208.7,1208.6,59.20284537]
[1672768489057,7.6188963,1208.7,1208.6,59.20284537]
[1672768490646,4.02038128,1208.7,1208.6,59.20284537]
[1672768491001,7.5528963,1208.7,1208.6,59.20284537]
[1672768491219,6.38000517,1208.7,1208.6,59.20238224]
[1672768491360,7.6188832,1208.7,1208.6,59.20238224]
[1672768491712,6.38000517,1208.7,1208.6,59.20238224]
[1672768492579,7.61880116,1208.7,1208.6,59.20238224]
[1672768492729,8.8562936,1208.7,1208.6,59.20238224]
[1672768494452,8.8562936,1208.7,1208.6,51.07878857]
[1672768495040,8.8562936,1208.7,1208.6,51.07480957]
[1672768495303,10.09882596,1208.7,1208.6,47.64058222]
[1672768496352,6.99911498,1208.7,1208.6,47.64058222]
[1672768496887,7.62253753,1208.7,1208.6,47.64058222]
[1672768497127,9.55470644,1208.7,1208.6,47.64058222]
[1672768497461,15.05470644,1208.7,1208.6,47.64058222]
[1672768497991,9.55470644,1208.7,1208.6,47.64058222]
[1672768499768,6.45499546,1208.7,1208.6,17.85406222]
[1672768500050,15.66842515,1208.7,1208.6,27.0577305]
[1672768500210,15.66842515,1208.7,1208.6,7.2000505]
[1672768500419,15.66842515,1208.7,1208.6,4.2000505]
[1672768500613,17.72942515,1208.7,1208.6,4.1340505]
[1672768500827,17.72942515,1208.7,1208.6,14.0628905]
[1672768501151,17.72942515,1208.7,1208.6,4.2000505]
[1672768501363,17.72942515,1208.7,1208.6,14.0628905]
[1672768501726,17.72942515,1208.7,1208.6,24.0577305]
[1672768502088,17.72942515,1208.7,1208.6,27.0577305]
[1672768502464,17.72942515,1208.7,1208.6,17.1288905]
[1672768504819,17.72942515,1208.7,1208.6,36.9865705]
[1672768505199,17.72942515,1208.7,1208.6,27.0577305]
[1672768506014,14.01599546,1208.7,1208.6,27.0577305]
[1672768506228,17.72942515,1208.7,1208.6,27.0577305]
[1672768506393,17.72942515,1208.7,1208.6,17.1288905]
[1672768509129,17.72942515,1208.7,1208.6,7.2000505]
[1672768510762,18.35052515,1208.7,1208.6,7.2000505]
[1672768511707,16.28952515,1208.7,1208.6,7.2000505]
[1672768513344,26.21754515,1208.7,1208.6,7.2000505]
[1672768513557,16.28952515,1208.7,1208.6,7.2000505]
[1672768513966,48.13458515,1208.7,1208.6,0.066]
[1672768514193,5.5,1208.6,1208.4,9.93028]
[1672768514544,17.3249882,1208.6,1208.5,4.14886114]
[1672768514860,30.85234322,1208.6,1208.5,4.14886114]
[1672768515702,30.85234322,1208.6,1208.5,7.14886114]
[1672768515873,20.92350322,1208.6,1208.5,7.21486114]
[1672768516068,20.29726596,1208.6,1208.5,17.14452114]
[1672768516925,20.29726596,1208.6,1208.5,17.14244671]
[1672768517525,20.31992107,1208.6,1208.5,17.14244671]
[1672768518445,18.25892107,1208.6,1208.5,17.14244671]
[1672768519025,18.25892107,1208.6,1208.5,27.07210671]
[1672768519351,12.89546256,1208.6,1208.5,27.07210671]
[1672768519762,12.89546256,1208.6,1208.5,17.14244671]
[1672768521702,12.27436256,1208.6,1208.5,17.14244671]
[1672768522706,12.27436256,1208.6,1208.5,7.21278671]
[1672768524342,12.27436256,1208.6,1208.5,17.14244671]
[1672768524490,15.87948108,1208.6,1208.5,17.14244671]
[1672768527297,15.87948108,1208.6,1208.5,7.21278671]
[1672768528334,15.87830026,1208.6,1208.5,17.14244671]
[1672768528551,15.87831443,1208.6,1208.5,17.14244671]
[1672768529389,12.79228865,1208.6,1208.5,17.14244671]
[1672768529579,15.87830236,1208.6,1208.5,17.14244671]
[1672768530437,15.87924283,1208.6,1208.5,17.14244671]
[1672768532189,16.50571834,1208.6,1208.5,17.14244671]
[1672768532464,12.79228865,1208.6,1208.5,17.14244671]
[1672768532804,16.50571834,1208.6,1208.5,17.14244671]
[1672768537285,17.12462329,1208.6,1208.5,17.14244671]
[1672768538067,17.12462329,1208.6,1208.5,4.21278671]
[1672768538222,40.07238045,1208.6,1208.5,4.14678671]
[1672768538424,30.76464045,1208.6,1208.5,4.14678671]
[1672768538963,30.76464045,1208.6,1208.5,4.14299815]
[1672768540115,26.43499281,1208.6,1208.5,4.14299815]
[1672768540476,26.43509281,1208.6,1208.4,0.066]
[1672768540689,7.94255953,1208.5,1208.4,7.14886114]
[1672768540844,11.08647326,1208.5,1208.4,7.21486114]
[1672768541416,11.70767326,1208.5,1208.4,7.21486114]
[1672768541569,11.08647326,1208.5,1208.4,17.14534114]
[1672768542362,6.75733741,1208.5,1208.4,17.14534114]
[1672768543678,11.08647326,1208.5,1208.4,17.14534114]
[1672768543884,6.75733741,1208.5,1208.4,17.14534114]
[1672768545566,11.08647326,1208.5,1208.4,7.21486114]
[1672768546508,6.75733741,1208.5,1208.4,7.21486114]
[1672768548043,11.08647326,1208.5,1208.4,7.21486114]
[1672768549303,6.75733741,1208.5,1208.4,7.21486114]
[1672768550474,11.08647326,1208.5,1208.4,7.21486114]
[1672768550776,6.75733741,1208.5,1208.4,7.21486114]
[1672768551101,11.08647326,1208.5,1208.4,7.21486114]
[1672768554518,6.75733741,1208.5,1208.4,7.21486114]
[1672768555198,10.46683294,1208.5,1208.4,7.21486114]
[1672768555717,6.75733741,1208.5,1208.4,7.21486114]
[1672768556294,10.46675214,1208.5,1208.4,7.21486114]
[1672768556547,6.75733741,1208.5,1208.4,7.21486114]
[1672768557762,11.08647326,1208.5,1208.4,7.21486114]
[1672768557969,6.75733741,1208.5,1208.4,7.21486114]
[1672768558243,11.08647326,1208.5,1208.4,7.21486114]
[1672768558439,6.75733741,1208.5,1208.4,7.21486114]
[1672768558986,11.08647326,1208.5,1208.4,7.21486114]
[1672768559337,6.75733741,1208.5,1208.4,7.21486114]
[1672768559653,11.08647326,1208.5,1208.4,7.21486114]
[1672768559863,6.75733741,1208.5,1208.4,7.21486114]
[1672768560512,6.75733741,1208.5,1208.4,7.21275842]
[1672768561759,6.75733741,1208.5,1208.4,3.066]
[1672768561966,40.87545326,1208.5,1208.3,0.066]
[1672768562319,27.80351953,1208.4,1208.3,3.0]
[1672768562544,42.46158589,1208.4,1208.2,3.07911959]
[1672768562753,7.32278464,1208.3,1208.2,7.16198073]
[1672768562968,7.38878464,1208.3,1208.2,7.22798073]
[1672768563364,7.38878464,1208.3,1208.2,17.16011073]
[1672768563976,7.38878464,1208.3,1208.2,27.09224073]
[1672768564190,9.02673533,1208.3,1208.2,27.09224073]
[1672768567864,3.67942368,1208.3,1208.2,27.09224073]
[1672768568115,3.61342368,1208.3,1208.2,27.09224073]
[1672768568322,3.09092129,1208.3,1208.2,49.8149667]
[1672768568494,6.70434497,1208.3,1208.2,49.8149667]
[1672768568713,6.77034497,1208.3,1208.2,49.81435816]
[1672768568931,6.77034497,1208.3,1208.2,46.95650073]
[1672768569153,3.67942368,1208.3,1208.2,46.95650073]
[1672768569371,3.61342368,1208.3,1208.2,46.95650073]
[1672768569552,6.70455135,1208.3,1208.2,46.95650073]
[1672768569762,3.67942368,1208.3,1208.2,37.02437073]
[1672768570035,3.61342368,1208.3,1208.2,37.02437073]
[1672768570511,7.32278464,1208.3,1208.2,37.02437073]
[1672768570647,8.6776631,1208.3,1208.2,37.02437073]
[1672768571893,8.6776631,1208.3,1208.2,39.08537073]
[1672768574450,7.38878464,1208.3,1208.2,39.08537073]
[1672768575682,6.77156105,1208.3,1208.2,39.08537073]
[1672768575894,6.77156105,1208.3,1208.2,39.58054245]
[1672768576159,3.67942368,1208.3,1208.2,39.58054245]
[1672768576380,3.61342368,1208.3,1208.2,39.58054245]
[1672768576733,6.70641074,1208.3,1208.2,39.58054245]
[1672768577120,7.78880255,1208.3,1208.2,39.58054245]
[1672768577470,4.17537887,1208.3,1208.2,39.58054245]
[1672768577804,7.72280255,1208.3,1208.2,39.58054245]
[1672768577975,7.78880255,1208.3,1208.2,39.58054245]
[1672768578864,4.17537887,1208.3,1208.2,43.19396613]
[1672768579205,7.72074541,1208.3,1208.2,43.19396613]
[1672768579363,7.78674541,1208.3,1208.2,43.19396613]
[1672768579574,7.78464041,1208.3,1208.2,43.19396613]
[1672768581449,4.69375835,1208.3,1208.2,39.58054245]
[1672768581672,4.62775835,1208.3,1208.2,39.58054245]
[1672768582096,4.62775835,1208.3,1208.2,43.19396613]
[1672768582518,4.62775835,1208.3,1208.2,53.12609613]
[1672768582761,1.01639181,1208.3,1208.2,59.97059988]
[1672768584288,3.49140286,1208.3,1208.2,59.97059988]
[1672768584503,3.49140286,1208.3,1208.2,62.02259988]
[1672768584715,5.34771868,1208.3,1208.2,71.31359988]
[1672768584928,5.41371868,1208.3,1208.2,71.31359988]
[1672768586098,5.41344802,1208.3,1208.2,71.31359988]
[1672768588701,2.93843697,1208.3,1208.2,71.31359988]